[Event "*** Titled Tuesday 3|2 Blitz"]
[Site "Chess.com"]
[Date "2016.07.05"]
[Round "6"]
[White "salomez"]
[Black "ftorodent"]
[Result "0-1"]
[WhiteElo "2139"]
[BlackElo "2416"]
[TimeControl "180+2"]
[EndTime "12:15:34 PDT"]
[Termination "ftorodent won on time"]

1. e4 {[%clk 0:02:55.6]} 1... e6 {[%clk 0:02:57.8]} 2. d4 {[%clk 0:02:56]} 2...
d5 {[%clk 0:02:58.8]} 3. Nc3 {[%clk 0:02:55]} 3... Bb4 {[%clk 0:02:59.5]} 4. e5
{[%clk 0:02:55.7]} 4... Qd7 {[%clk 0:02:58.8]} 5. Qg4 {[%clk 0:02:51.5]} 5... f5
{[%clk 0:02:59.2]} 6. Qh5+ {[%clk 0:02:42.6]} 6... Qf7 {[%clk 0:02:59.2]} 7.
Qxf7+ {[%clk 0:02:42.8]} 7... Kxf7 {[%clk 0:03:00]} 8. Nf3 {[%clk 0:02:40.2]}
8... h6 {[%clk 0:02:55]} 9. Bd2 {[%clk 0:02:38.7]} 9... Bxc3 {[%clk 0:02:42.6]}
10. Bxc3 {[%clk 0:02:39.2]} 10... b6 {[%clk 0:02:44.4]} 11. g3 {[%clk
0:02:30.2]} 11... Ba6 {[%clk 0:02:42.5]} 12. Bg2 {[%clk 0:02:29.9]} 12... Ne7
{[%clk 0:02:37.4]} 13. b3 {[%clk 0:02:28.9]} 13... c5 {[%clk 0:02:35.6]} 14. Bb2
{[%clk 0:02:29.7]} 14... Nbc6 {[%clk 0:02:36.4]} 15. Kd2 {[%clk 0:01:57]} 15...
g5 {[%clk 0:02:34.6]} 16. h3 {[%clk 0:01:50.5]} 16... Rac8 {[%clk 0:02:25.3]}
17. Bf1 {[%clk 0:01:07.8]} 17... Bxf1 {[%clk 0:02:21.7]} 18. Rhxf1 {[%clk
0:01:08.7]} 18... g4 {[%clk 0:01:52.5]} 19. hxg4 {[%clk 0:01:08.4]} 19... fxg4
{[%clk 0:01:53.6]} 20. Nh4 {[%clk 0:01:09.5]} 20... cxd4 {[%clk 0:00:58.1]} 21.
f3 {[%clk 0:01:09.1]} 21... gxf3 {[%clk 0:00:56.9]} 22. Nxf3 {[%clk 0:00:46.9]}
22... Kg7 {[%clk 0:00:56.9]} 23. Nxd4 {[%clk 0:00:38]} 23... Nxd4 {[%clk
0:00:56.2]} 24. Bxd4 {[%clk 0:00:39]} 24... Rcf8 {[%clk 0:00:31.4]} 25. Rf6
{[%clk 0:00:35]} 25... Nf5 {[%clk 0:00:31.2]} 26. Bb2 {[%clk 0:00:26.9]} 26...
Rxf6 {[%clk 0:00:31.2]} 27. exf6+ {[%clk 0:00:27.5]} 27... Kf7 {[%clk
0:00:32.9]} 28. g4 {[%clk 0:00:25.4]} 28... Nd6 {[%clk 0:00:33.9]} 29. Ke3
{[%clk 0:00:17.2]} 29... Rg8 {[%clk 0:00:34.3]} 30. Rh1 {[%clk 0:00:15.4]} 30...
Rg6 {[%clk 0:00:34.3]} 31. g5 {[%clk 0:00:12.6]} 31... Rxg5 {[%clk 0:00:29]} 32.
Rxh6 {[%clk 0:00:09.1]} 32... Nf5+ {[%clk 0:00:21.2]} 33. Kf4 {[%clk 0:00:10.2]}
33... Nxh6 {[%clk 0:00:21.4]} 34. Kxg5 {[%clk 0:00:11.1]} 34... Nf5 {[%clk
0:00:21.5]} 35. c4 {[%clk 0:00:08.2]} 35... dxc4 {[%clk 0:00:21.5]} 36. bxc4
{[%clk 0:00:09.2]} 36... Ne3 {[%clk 0:00:23.1]} 37. Be5 {[%clk 0:00:05.7]} 37...
Nxc4 {[%clk 0:00:23.2]} 38. Bb8 {[%clk 0:00:06.7]} 38... a6 {[%clk 0:00:22.9]}
39. Bc7 {[%clk 0:00:07.7]} 39... b5 {[%clk 0:00:23.5]} 40. Bd8 {[%clk
0:00:05.7]} 40... a5 {[%clk 0:00:21.5]} 41. Kf4 {[%clk 0:00:04.8]} 41... b4
{[%clk 0:00:20.5]} 42. Ke4 {[%clk 0:00:04.7]} 42... a4 {[%clk 0:00:21.6]} 43.
Kd4 {[%clk 0:00:05.1]} 43... b3 {[%clk 0:00:22.9]} 44. axb3 {[%clk 0:00:05]}
44... a3 {[%clk 0:00:17.2]} 0-1

[Event "*** Titled Tuesday 3|2 Blitz"]
[Site "Chess.com"]
[Date "2016.07.05"]
[Round "6"]
[White "TomsKantans"]
[Black "PowerThinking2650"]
[Result "1-0"]
[WhiteElo "2427"]
[BlackElo "2152"]
[TimeControl "180+2"]
[EndTime "12:15:44 PDT"]
[Termination "TomsKantans won by resignation"]

1. e4 {[%clk 0:02:58.2]} 1... e5 {[%clk 0:03:00.3]} 2. Nf3 {[%clk 0:02:58.1]}
2... Nc6 {[%clk 0:03:01.2]} 3. Bb5 {[%clk 0:02:58.6]} 3... a6 {[%clk 0:03:02.1]}
4. Ba4 {[%clk 0:02:59.6]} 4... Nf6 {[%clk 0:03:02.9]} 5. O-O {[%clk 0:03:00.4]}
5... Be7 {[%clk 0:03:04.1]} 6. Re1 {[%clk 0:02:59.4]} 6... b5 {[%clk 0:03:02.3]}
7. Bb3 {[%clk 0:03:00.8]} 7... d6 {[%clk 0:03:03.6]} 8. c3 {[%clk 0:03:02.2]}
8... O-O {[%clk 0:03:03.5]} 9. d4 {[%clk 0:03:03.1]} 9... Bg4 {[%clk 0:03:03.1]}
10. Be3 {[%clk 0:03:04.1]} 10... exd4 {[%clk 0:03:02.6]} 11. cxd4 {[%clk
0:03:05]} 11... d5 {[%clk 0:03:03.8]} 12. e5 {[%clk 0:03:02.7]} 12... Ne4 {[%clk
0:03:04.5]} 13. h3 {[%clk 0:03:03.2]} 13... Bh5 {[%clk 0:03:04.5]} 14. Nbd2
{[%clk 0:03:03.4]} 14... Nxd2 {[%clk 0:02:57.8]} 15. Qxd2 {[%clk 0:02:59.8]}
15... Bxf3 {[%clk 0:02:57.7]} 16. gxf3 {[%clk 0:03:01.7]} 16... Qd7 {[%clk
0:02:54]} 17. Rac1 {[%clk 0:02:40.1]} 17... Bb4 {[%clk 0:02:42.4]} 18. Qc2
{[%clk 0:02:40.7]} 18... Bxe1 {[%clk 0:02:40.4]} 19. Qxc6 {[%clk 0:02:41.4]}
19... Qxc6 {[%clk 0:02:18.7]} 20. Rxc6 {[%clk 0:02:43.3]} 20... Ba5 {[%clk
0:02:19.5]} 21. Bxd5 {[%clk 0:02:43.2]} 21... Rad8 {[%clk 0:02:01.9]} 22. Be4
{[%clk 0:01:24.5]} 22... Bb6 {[%clk 0:01:57.6]} 23. d5 {[%clk 0:01:24.8]} 23...
Rb8 {[%clk 0:01:44.6]} 24. d6 {[%clk 0:01:06.3]} 24... Bxe3 {[%clk 0:01:27.7]}
25. dxc7 {[%clk 0:00:53.8]} 25... Ba7 {[%clk 0:01:00]} 26. Rxa6 {[%clk
0:00:38.4]} 26... Bd4 {[%clk 0:00:40.7]} 27. cxb8=Q {[%clk 0:00:35.4]} 27...
Rxb8 {[%clk 0:00:41.2]} 28. f4 {[%clk 0:00:31.3]} 28... Bxb2 {[%clk 0:00:41]}
29. Kg2 {[%clk 0:00:23.3]} 29... b4 {[%clk 0:00:35.5]} 30. Bd5 {[%clk
0:00:23.8]} 30... g5 {[%clk 0:00:29.5]} 31. Ra7 {[%clk 0:00:23.1]} 31... Rf8
{[%clk 0:00:25.5]} 32. Kf3 {[%clk 0:00:22.9]} 32... Kg7 {[%clk 0:00:19.4]} 33.
Rb7 {[%clk 0:00:15.1]} 33... gxf4 {[%clk 0:00:19.7]} 34. Kxf4 {[%clk 0:00:16.3]}
34... Bc3 {[%clk 0:00:19.4]} 35. Kf5 {[%clk 0:00:17.5]} 35... h6 {[%clk
0:00:19.8]} 36. f4 {[%clk 0:00:18.4]} 36... Kg8 {[%clk 0:00:20.3]} 37. h4 {[%clk
0:00:19.7]} 37... Kg7 {[%clk 0:00:21.4]} 38. h5 {[%clk 0:00:21]} 38... Kg8
{[%clk 0:00:20.3]} 39. Bb3 {[%clk 0:00:19.5]} 39... Kg7 {[%clk 0:00:20.6]} 40.
Ke4 {[%clk 0:00:18.9]} 40... Bd2 {[%clk 0:00:20.4]} 41. f5 {[%clk 0:00:19]}
41... Bc3 {[%clk 0:00:19.6]} 42. f6+ {[%clk 0:00:19.6]} 42... Kg8 {[%clk
0:00:19.8]} 43. Kf5 {[%clk 0:00:21.2]} 43... Bd2 {[%clk 0:00:16.7]} 44. e6
{[%clk 0:00:13.7]} 44... fxe6+ {[%clk 0:00:16.5]} 45. Bxe6+ {[%clk 0:00:15.6]}
45... Kh8 {[%clk 0:00:16.3]} 46. Kg6 {[%clk 0:00:16.8]} 1-0

[Event "*** Titled Tuesday 3|2 Blitz"]
[Site "Chess.com"]
[Date "2016.07.05"]
[Round "6"]
[White "Izoria123"]
[Black "Keaton87"]
[Result "1-0"]
[WhiteElo "2595"]
[BlackElo "2498"]
[TimeControl "180+2"]
[EndTime "12:16:00 PDT"]
[Termination "Izoria123 won by resignation"]

1. e4 {[%clk 0:03:01.9]} 1... c5 {[%clk 0:02:57.2]} 2. Nf3 {[%clk 0:03:02.5]}
2... d6 {[%clk 0:02:54.1]} 3. c3 {[%clk 0:03:03.2]} 3... Nf6 {[%clk 0:02:54.1]}
4. Be2 {[%clk 0:03:04.5]} 4... Nc6 {[%clk 0:02:50.6]} 5. d4 {[%clk 0:03:05.2]}
5... e5 {[%clk 0:02:42.7]} 6. d5 {[%clk 0:02:39.4]} 6... Nb8 {[%clk 0:02:42.6]}
7. O-O {[%clk 0:02:39.4]} 7... Be7 {[%clk 0:02:43.7]} 8. Nbd2 {[%clk 0:02:34.1]}
8... O-O {[%clk 0:02:44.6]} 9. a4 {[%clk 0:02:34.6]} 9... Ne8 {[%clk 0:02:45.3]}
10. b4 {[%clk 0:02:33.2]} 10... cxb4 {[%clk 0:02:36.6]} 11. cxb4 {[%clk
0:02:34.2]} 11... f5 {[%clk 0:02:37.7]} 12. Bd3 {[%clk 0:02:24.3]} 12... g6
{[%clk 0:02:31.9]} 13. Qb3 {[%clk 0:02:23.6]} 13... Nd7 {[%clk 0:02:24.6]} 14.
Bb2 {[%clk 0:02:22.4]} 14... f4 {[%clk 0:02:08.7]} 15. Nxe5 {[%clk 0:02:18.8]}
15... Nxe5 {[%clk 0:02:03.4]} 16. Bxe5 {[%clk 0:02:19.2]} 16... dxe5 {[%clk
0:02:02]} 17. d6+ {[%clk 0:02:21.1]} 17... Kg7 {[%clk 0:02:03]} 18. dxe7 {[%clk
0:02:22.1]} 18... Qxe7 {[%clk 0:02:04.9]} 19. Rfc1 {[%clk 0:02:18.3]} 19... Be6
{[%clk 0:01:53]} 20. Qb2 {[%clk 0:02:13.5]} 20... Bg8 {[%clk 0:01:50.7]} 21. Rc5
{[%clk 0:02:09.1]} 21... Rd8 {[%clk 0:01:39.1]} 22. Bf1 {[%clk 0:01:39.6]} 22...
Qf6 {[%clk 0:01:16.4]} 23. Nf3 {[%clk 0:01:36.4]} 23... Nd6 {[%clk 0:01:17.7]}
24. Qxe5 {[%clk 0:01:32.7]} 24... Qxe5 {[%clk 0:01:18.2]} 25. Rxe5 {[%clk
0:01:33.3]} 25... Rfe8 {[%clk 0:01:16.4]} 26. Rxe8 {[%clk 0:01:34.2]} 26... Rxe8
{[%clk 0:01:17.2]} 27. Rd1 {[%clk 0:01:28]} 27... Nxe4 {[%clk 0:01:01.2]} 28.
Rd7+ {[%clk 0:01:28.3]} 28... Kf6 {[%clk 0:01:00.7]} 29. Rxb7 {[%clk 0:01:29.8]}
29... Re7 {[%clk 0:01:01.4]} 30. Rb8 {[%clk 0:01:24.2]} 30... Bd5 {[%clk
0:00:58.7]} 31. b5 {[%clk 0:01:19.7]} 31... Nc3 {[%clk 0:00:56.6]} 32. a5 {[%clk
0:01:19.2]} 32... Ne2+ {[%clk 0:00:29.4]} 33. Bxe2 {[%clk 0:00:52.1]} 33... Rxe2
{[%clk 0:00:31.3]} 34. h4 {[%clk 0:00:52.9]} 34... Ra2 {[%clk 0:00:28.6]} 35. a6
{[%clk 0:00:51.4]} 35... Rb2 {[%clk 0:00:12.6]} 36. Rf8+ {[%clk 0:00:43]} 36...
Ke7 {[%clk 0:00:12.3]} 37. Rh8 {[%clk 0:00:42.8]} 37... h5 {[%clk 0:00:07.3]}
38. Rh7+ {[%clk 0:00:41.9]} 38... Kd6 {[%clk 0:00:08.9]} 39. Rxa7 {[%clk
0:00:41.1]} 39... Rxb5 {[%clk 0:00:10]} 40. Rg7 {[%clk 0:00:40.7]} 40... Be4
{[%clk 0:00:11.1]} 41. a7 {[%clk 0:00:40.2]} 41... Ra5 {[%clk 0:00:12.5]} 42.
Ng5 {[%clk 0:00:39.9]} 42... Bf5 {[%clk 0:00:11.1]} 43. f3 {[%clk 0:00:38.7]}
43... Ra2 {[%clk 0:00:11.2]} 44. Kh2 {[%clk 0:00:39]} 44... Ke5 {[%clk
0:00:12.1]} 45. Rf7 {[%clk 0:00:37.4]} 45... Kd4 {[%clk 0:00:12.1]} 46. Re7
{[%clk 0:00:37.7]} 46... Kd3 {[%clk 0:00:11.4]} 47. Nh3 {[%clk 0:00:38.6]} 47...
Bxh3 {[%clk 0:00:05.8]} 48. Kxh3 {[%clk 0:00:40.5]} 48... Ra1 {[%clk 0:00:04.8]}
49. Kh2 {[%clk 0:00:41.6]} 49... Ra4 {[%clk 0:00:04.7]} 50. Rg7 {[%clk
0:00:41.1]} 50... Ke3 {[%clk 0:00:04]} 51. Rxg6 {[%clk 0:00:33.8]} 51... Rxa7
{[%clk 0:00:05.4]} 52. Rg5 {[%clk 0:00:33.7]} 52... Rh7 {[%clk 0:00:05.9]} 53.
Rf5 {[%clk 0:00:33.7]} 53... Rh8 {[%clk 0:00:06.4]} 54. Kg1 {[%clk 0:00:33.4]}
54... Rh7 {[%clk 0:00:07.7]} 55. Re5+ {[%clk 0:00:33.9]} 55... Kd3 {[%clk
0:00:05.6]} 56. Kf2 {[%clk 0:00:34.4]} 56... Rh8 {[%clk 0:00:04.2]} 57. Rf5
{[%clk 0:00:34.9]} 57... Ra8 {[%clk 0:00:03.7]} 58. Rxf4 {[%clk 0:00:34.7]}
58... Ra2+ {[%clk 0:00:05.6]} 59. Kg3 {[%clk 0:00:35.5]} 59... Ke3 {[%clk
0:00:07.1]} 60. Re4+ {[%clk 0:00:36.1]} 1-0

[Event "*** Titled Tuesday 3|2 Blitz"]
[Site "Chess.com"]
[Date "2016.07.05"]
[Round "6"]
[White "wonderfultime"]
[Black "EltajSafarli"]
[Result "0-1"]
[WhiteElo "2688"]
[BlackElo "2772"]
[TimeControl "180+2"]
[EndTime "12:16:11 PDT"]
[Termination "EltajSafarli won by resignation"]

1. d4 {[%clk 0:03:01.9]} 1... Nf6 {[%clk 0:03:00.3]} 2. c4 {[%clk 0:03:02.9]}
2... g6 {[%clk 0:03:00.8]} 3. Nc3 {[%clk 0:03:04.2]} 3... d5 {[%clk 0:03:00.7]}
4. cxd5 {[%clk 0:03:03.4]} 4... Nxd5 {[%clk 0:03:02.6]} 5. e4 {[%clk 0:03:05]}
5... Nxc3 {[%clk 0:03:03.9]} 6. bxc3 {[%clk 0:03:06.9]} 6... Bg7 {[%clk
0:03:04.9]} 7. Qa4+ {[%clk 0:03:08.5]} 7... Nd7 {[%clk 0:03:04.1]} 8. Nf3 {[%clk
0:03:09.3]} 8... O-O {[%clk 0:03:05]} 9. Be2 {[%clk 0:03:10.9]} 9... c5 {[%clk
0:03:06.3]} 10. O-O {[%clk 0:03:12.1]} 10... cxd4 {[%clk 0:03:04.4]} 11. cxd4
{[%clk 0:03:14]} 11... Nc5 {[%clk 0:03:05.5]} 12. dxc5 {[%clk 0:03:15.9]} 12...
Bxa1 {[%clk 0:03:05.4]} 13. e5 {[%clk 0:03:16.5]} 13... Bc3 {[%clk 0:03:03.2]}
14. Bh6 {[%clk 0:03:10.1]} 14... Qa5 {[%clk 0:03:03]} 15. Qh4 {[%clk 0:03:02.2]}
15... Re8 {[%clk 0:03:03]} 16. Be3 {[%clk 0:02:49.3]} 16... h5 {[%clk
0:02:30.7]} 17. Bc4 {[%clk 0:02:39.6]} 17... Bf5 {[%clk 0:02:17.6]} 18. Qf4
{[%clk 0:02:15.8]} 18... e6 {[%clk 0:02:15.6]} 19. Qh6 {[%clk 0:02:07.6]} 19...
Qc7 {[%clk 0:02:09.8]} 20. Rd1 {[%clk 0:01:01.1]} 20... Qe7 {[%clk 0:01:27.8]}
21. Ng5 {[%clk 0:00:25]} 21... f6 {[%clk 0:01:22.9]} 22. exf6 {[%clk 0:00:18.2]}
22... Bxf6 {[%clk 0:01:18.9]} 23. Rd6 {[%clk 0:00:11.9]} 23... Bxg5 {[%clk
0:01:08.2]} 24. Bxg5 {[%clk 0:00:10.7]} 24... Qf8 {[%clk 0:01:09.6]} 25. Qxf8+
{[%clk 0:00:08]} 25... Rxf8 {[%clk 0:01:04.2]} 26. Rd7 {[%clk 0:00:05.2]} 26...
Rf7 {[%clk 0:01:02.4]} 27. Rd2 {[%clk 0:00:03.7]} 27... Rc8 {[%clk 0:01:01.1]}
28. Be3 {[%clk 0:00:05]} 28... Rff8 {[%clk 0:00:57.4]} 29. h3 {[%clk 0:00:04.1]}
29... Rfd8 {[%clk 0:00:58.3]} 30. Rb2 {[%clk 0:00:05.5]} 30... Rd7 {[%clk
0:00:56.5]} 31. Be2 {[%clk 0:00:05.5]} 31... Be4 {[%clk 0:00:50]} 32. Kh2 {[%clk
0:00:06.9]} 32... Bc6 {[%clk 0:00:49.5]} 33. Bc4 {[%clk 0:00:06.2]} 33... Re8
{[%clk 0:00:50.1]} 34. Kg3 {[%clk 0:00:07]} 34... Rf7 {[%clk 0:00:49.8]} 35. Rd2
{[%clk 0:00:07.6]} 35... Rd7 {[%clk 0:00:45.5]} 36. Rb2 {[%clk 0:00:08.2]} 36...
Kf7 {[%clk 0:00:45.1]} 37. Kf4 {[%clk 0:00:08.9]} 37... Kf6 {[%clk 0:00:43.4]}
38. Kg3 {[%clk 0:00:09.4]} 38... g5 {[%clk 0:00:42.4]} 39. Kh2 {[%clk
0:00:08.2]} 39... h4 {[%clk 0:00:41.5]} 40. Be2 {[%clk 0:00:06.9]} 40... e5
{[%clk 0:00:41.8]} 41. g3 {[%clk 0:00:07.6]} 41... hxg3+ {[%clk 0:00:41.9]} 42.
fxg3 {[%clk 0:00:09.5]} 42... Kg6 {[%clk 0:00:39.9]} 43. h4 {[%clk 0:00:10.2]}
43... gxh4 {[%clk 0:00:38.3]} 44. gxh4 {[%clk 0:00:12.1]} 44... Kf5 {[%clk
0:00:37.9]} 45. Rb4 {[%clk 0:00:09.4]} 45... Rg8 {[%clk 0:00:35.4]} 46. Bf1
{[%clk 0:00:07.2]} 46... Rd1 {[%clk 0:00:33.9]} 47. Bh3+ {[%clk 0:00:08.5]}
47... Kf6 {[%clk 0:00:35]} 48. Bg5+ {[%clk 0:00:09.8]} 48... Rxg5 {[%clk
0:00:35.5]} 49. hxg5+ {[%clk 0:00:11.7]} 49... Kxg5 {[%clk 0:00:37.4]} 50. Rg4+
{[%clk 0:00:10.1]} 50... Kf6 {[%clk 0:00:38]} 51. Rc4 {[%clk 0:00:10.4]} 51...
Rd2+ {[%clk 0:00:38]} 52. Kg3 {[%clk 0:00:12]} 52... Rxa2 {[%clk 0:00:38.4]} 53.
Rc3 {[%clk 0:00:13.1]} 53... Rd2 {[%clk 0:00:38.1]} 54. Bf1 {[%clk 0:00:12.9]}
54... Rd4 {[%clk 0:00:37]} 55. Bc4 {[%clk 0:00:13.5]} 55... a5 {[%clk
0:00:34.7]} 56. Kf2 {[%clk 0:00:14.8]} 56... a4 {[%clk 0:00:35.9]} 57. Ke3
{[%clk 0:00:15.7]} 57... Rh4 {[%clk 0:00:36.6]} 58. Kd2 {[%clk 0:00:16.3]} 58...
Rh2+ {[%clk 0:00:37.7]} 59. Kc1 {[%clk 0:00:17.8]} 59... e4 {[%clk 0:00:38.9]}
0-1

[Event "*** Titled Tuesday 3|2 Blitz"]
[Site "Chess.com"]
[Date "2016.07.05"]
[Round "6"]
[White "daro94"]
[Black "LaStreetCmaMaison"]
[Result "1-0"]
[WhiteElo "2641"]
[BlackElo "2430"]
[TimeControl "180+2"]
[EndTime "12:16:13 PDT"]
[Termination "daro94 won by resignation"]

1. d4 {[%clk 0:03:00.4]} 1... Nf6 {[%clk 0:03:01.2]} 2. c4 {[%clk 0:03:01.3]}
2... b6 {[%clk 0:03:02.5]} 3. Nf3 {[%clk 0:03:01.4]} 3... Bb7 {[%clk 0:03:03.6]}
4. g3 {[%clk 0:03:03.1]} 4... g6 {[%clk 0:03:05.1]} 5. Bg2 {[%clk 0:03:04.3]}
5... Bg7 {[%clk 0:03:06.6]} 6. O-O {[%clk 0:03:05.8]} 6... O-O {[%clk
0:03:07.9]} 7. Nc3 {[%clk 0:03:07.3]} 7... Ne4 {[%clk 0:03:09.2]} 8. Bd2 {[%clk
0:03:08.9]} 8... Nxd2 {[%clk 0:03:10]} 9. Qxd2 {[%clk 0:03:10.5]} 9... d6 {[%clk
0:03:10.9]} 10. e4 {[%clk 0:03:06.7]} 10... e6 {[%clk 0:03:11]} 11. h4 {[%clk
0:03:06.6]} 11... Nd7 {[%clk 0:03:09.2]} 12. Rab1 {[%clk 0:02:58]} 12... h6
{[%clk 0:03:02.8]} 13. Rfe1 {[%clk 0:02:47.9]} 13... e5 {[%clk 0:02:44.8]} 14.
d5 {[%clk 0:02:42.8]} 14... Nf6 {[%clk 0:02:45.7]} 15. Bh3 {[%clk 0:02:42.6]}
15... Bc8 {[%clk 0:02:46.4]} 16. Bxc8 {[%clk 0:02:40.1]} 16... Qxc8 {[%clk
0:02:48.3]} 17. b4 {[%clk 0:02:38]} 17... Nh5 {[%clk 0:02:48.2]} 18. Qe2 {[%clk
0:01:34.9]} 18... f5 {[%clk 0:02:46.3]} 19. Kh2 {[%clk 0:01:28.3]} 19... f4
{[%clk 0:02:40.2]} 20. Rg1 {[%clk 0:01:06.5]} 20... Qg4 {[%clk 0:02:22.4]} 21.
Rbf1 {[%clk 0:01:07.7]} 21... Rf7 {[%clk 0:01:58.5]} 22. Nb1 {[%clk 0:00:35]}
22... Raf8 {[%clk 0:01:45]} 23. Nbd2 {[%clk 0:00:36.4]} 23... Kh8 {[%clk
0:01:01.5]} 24. c5 {[%clk 0:00:23.9]} 24... bxc5 {[%clk 0:00:58.2]} 25. bxc5
{[%clk 0:00:25.4]} 25... dxc5 {[%clk 0:00:59]} 26. Qd3 {[%clk 0:00:24]} 26...
Kh7 {[%clk 0:00:42.2]} 27. Qe2 {[%clk 0:00:22.7]} 27... a5 {[%clk 0:00:41.9]}
28. Ng5+ {[%clk 0:00:20.5]} 28... Qxg5 {[%clk 0:00:41.7]} 29. hxg5 {[%clk
0:00:21.3]} 29... f3 {[%clk 0:00:43.4]} 30. Nxf3 {[%clk 0:00:15.9]} 30... Rxf3
{[%clk 0:00:45.3]} 31. Kg2 {[%clk 0:00:16.4]} 31... R3f7 {[%clk 0:00:35.6]} 32.
Rh1 {[%clk 0:00:16]} 32... Kg8 {[%clk 0:00:34.3]} 33. Rxh5 {[%clk 0:00:16.2]}
33... gxh5 {[%clk 0:00:36.1]} 34. gxh6 {[%clk 0:00:15.4]} 34... Bxh6 {[%clk
0:00:36.8]} 35. Qxh5 {[%clk 0:00:17]} 35... Bg7 {[%clk 0:00:38.3]} 36. f3 {[%clk
0:00:16.3]} 36... Rf6 {[%clk 0:00:39.2]} 37. Rc1 {[%clk 0:00:17]} 37... Rh6
{[%clk 0:00:37.5]} 38. Qg4 {[%clk 0:00:18.3]} 38... Rb8 {[%clk 0:00:38.4]} 39.
Rc2 {[%clk 0:00:19.2]} 39... a4 {[%clk 0:00:39]} 40. Qd7 {[%clk 0:00:18.4]}
40... a3 {[%clk 0:00:35.3]} 41. Qxc7 {[%clk 0:00:18.5]} 41... Rhb6 {[%clk
0:00:35.2]} 42. Qxc5 {[%clk 0:00:17.9]} 42... Rb2 {[%clk 0:00:36.2]} 43. Kh3
{[%clk 0:00:19.4]} 43... Bf8 {[%clk 0:00:36]} 44. Qc4 {[%clk 0:00:20.5]} 44...
R8b4 {[%clk 0:00:35.1]} 45. Qc8 {[%clk 0:00:21]} 45... Rxc2 {[%clk 0:00:33.6]}
46. Qxc2 {[%clk 0:00:22]} 46... Rb2 {[%clk 0:00:35.3]} 47. Qc4 {[%clk
0:00:21.8]} 47... Rb4 {[%clk 0:00:35.5]} 48. Qc6 {[%clk 0:00:22.6]} 48... Rb2
{[%clk 0:00:36]} 49. Qe6+ {[%clk 0:00:22.3]} 49... Kh8 {[%clk 0:00:37.2]} 50.
Qxe5+ {[%clk 0:00:22.4]} 50... Bg7 {[%clk 0:00:38.6]} 51. Qh5+ {[%clk
0:00:23.8]} 51... Kg8 {[%clk 0:00:39.9]} 52. Qe8+ {[%clk 0:00:24.1]} 52... Kh7
{[%clk 0:00:40.8]} 53. Qh5+ {[%clk 0:00:25.7]} 53... Kg8 {[%clk 0:00:41.8]} 54.
d6 {[%clk 0:00:27.3]} 54... Rd2 {[%clk 0:00:41.7]} 55. d7 {[%clk 0:00:26.5]}
55... Bf6 {[%clk 0:00:39.6]} 56. Qg6+ {[%clk 0:00:26.7]} 56... Kh8 {[%clk
0:00:33.7]} 57. Qxf6+ {[%clk 0:00:27.7]} 57... Kh7 {[%clk 0:00:35.3]} 58. Qe7+
{[%clk 0:00:26.9]} 58... Kg6 {[%clk 0:00:34.4]} 59. d8=Q {[%clk 0:00:23.3]} 1-0

[Event "*** Titled Tuesday 3|2 Blitz"]
[Site "Chess.com"]
[Date "2016.07.05"]
[Round "6"]
[White "StoreySniper"]
[Black "Misha_Bilous"]
[Result "1-0"]
[WhiteElo "2343"]
[BlackElo "2243"]
[TimeControl "180+2"]
[EndTime "12:16:37 PDT"]
[Termination "StoreySniper won by resignation"]

1. e4 {[%clk 0:03:01.9]} 1... c5 {[%clk 0:03:00.8]} 2. Nf3 {[%clk 0:03:01.7]}
2... Nc6 {[%clk 0:03:02]} 3. c3 {[%clk 0:03:01.4]} 3... d5 {[%clk 0:03:00.7]} 4.
exd5 {[%clk 0:03:01.9]} 4... Qxd5 {[%clk 0:03:01.9]} 5. d4 {[%clk 0:03:03.8]}
5... Bg4 {[%clk 0:03:00.2]} 6. Be2 {[%clk 0:03:03.5]} 6... e6 {[%clk 0:03:01.3]}
7. Be3 {[%clk 0:03:04.6]} 7... Nf6 {[%clk 0:02:59.3]} 8. Na3 {[%clk 0:03:05.7]}
8... Be7 {[%clk 0:02:56.6]} 9. Nb5 {[%clk 0:03:05.4]} 9... Qd8 {[%clk
0:02:54.8]} 10. dxc5 {[%clk 0:03:06]} 10... Nd5 {[%clk 0:02:53.5]} 11. Nd6+
{[%clk 0:02:52.9]} 11... Bxd6 {[%clk 0:02:44.7]} 12. cxd6 {[%clk 0:02:53.7]}
12... Bxf3 {[%clk 0:02:02.4]} 13. Bxf3 {[%clk 0:02:52.6]} 13... Qxd6 {[%clk
0:02:03.2]} 14. Bxd5 {[%clk 0:02:41]} 14... exd5 {[%clk 0:01:54.6]} 15. Qb3
{[%clk 0:02:39.8]} 15... O-O {[%clk 0:01:49.6]} 16. O-O {[%clk 0:02:38]} 16...
f5 {[%clk 0:01:33.3]} 17. Rad1 {[%clk 0:02:30]} 17... Rad8 {[%clk 0:01:28.5]}
18. c4 {[%clk 0:01:48.3]} 18... d4 {[%clk 0:01:09.1]} 19. c5+ {[%clk 0:01:45]}
19... Qd5 {[%clk 0:01:10.2]} 20. Qxb7 {[%clk 0:01:41.1]} 20... f4 {[%clk
0:00:58.5]} 21. Bc1 {[%clk 0:01:22.2]} 21... f3 {[%clk 0:00:57.8]} 22. g3 {[%clk
0:01:11.6]} 22... Qe6 {[%clk 0:00:49.3]} 23. Qb3 {[%clk 0:01:08.3]} 23... Rd5
{[%clk 0:00:48.4]} 24. Rfe1 {[%clk 0:00:53.9]} 24... Qf7 {[%clk 0:00:44.3]} 25.
Bf4 {[%clk 0:00:40.7]} 25... Kh8 {[%clk 0:00:36.2]} 26. h4 {[%clk 0:00:32.2]}
26... h6 {[%clk 0:00:27.8]} 27. Qxf3 {[%clk 0:00:27.9]} 27... g5 {[%clk
0:00:26.7]} 28. hxg5 {[%clk 0:00:29.1]} 28... hxg5 {[%clk 0:00:27.9]} 29. Kg2
{[%clk 0:00:18.7]} 29... gxf4 {[%clk 0:00:24.8]} 30. Rh1+ {[%clk 0:00:18]} 30...
Kg7 {[%clk 0:00:23.4]} 31. Rh4 {[%clk 0:00:11.8]} 31... Rg5 {[%clk 0:00:12.3]}
32. Qxc6 {[%clk 0:00:09.9]} 32... f3+ {[%clk 0:00:12.4]} 33. Kh2 {[%clk
0:00:08.8]} 33... Rg6 {[%clk 0:00:12.2]} 34. Qe4 {[%clk 0:00:06]} 34... Rd8
{[%clk 0:00:07.6]} 35. Rxd4 {[%clk 0:00:06.3]} 35... Re8 {[%clk 0:00:06.2]} 36.
Qf4 {[%clk 0:00:06]} 36... Qe7 {[%clk 0:00:03.5]} 37. Rd6 {[%clk 0:00:04.1]}
37... Rf8 {[%clk 0:00:03.9]} 38. Rxg6+ {[%clk 0:00:04.5]} 38... Kxg6 {[%clk
0:00:05.1]} 39. Qg4+ {[%clk 0:00:05.6]} 39... Kf6 {[%clk 0:00:05.3]} 40. Rh6+
{[%clk 0:00:06.8]} 40... Ke5 {[%clk 0:00:06.3]} 41. Rh5+ {[%clk 0:00:07.3]}
41... Kf6 {[%clk 0:00:06.2]} 42. Rh6+ {[%clk 0:00:07.6]} 42... Ke5 {[%clk
0:00:07.1]} 43. Rh5+ {[%clk 0:00:08.9]} 43... Kf6 {[%clk 0:00:08.4]} 44. Qf4+
{[%clk 0:00:10.6]} 44... Kg6 {[%clk 0:00:06.2]} 45. Rh6+ {[%clk 0:00:12]} 45...
Kg7 {[%clk 0:00:06.5]} 46. Qh4 {[%clk 0:00:13]} 46... Qxh4+ {[%clk 0:00:05.1]}
47. Rxh4 {[%clk 0:00:14.1]} 47... Rd8 {[%clk 0:00:05.3]} 48. Rf4 {[%clk
0:00:14.5]} 48... Rd2 {[%clk 0:00:04.9]} 49. Rxf3 {[%clk 0:00:15.7]} 49... Rxb2
{[%clk 0:00:06.6]} 50. Kg2 {[%clk 0:00:16.7]} 50... Rxa2 {[%clk 0:00:07.8]} 51.
Rc3 {[%clk 0:00:17.7]} 51... Re2 {[%clk 0:00:07.1]} 52. c6 {[%clk 0:00:18.7]}
52... Re8 {[%clk 0:00:08.7]} 53. Ra3 {[%clk 0:00:19.4]} 53... Rc8 {[%clk
0:00:06.1]} 54. Rxa7+ {[%clk 0:00:20.2]} 54... Kf6 {[%clk 0:00:08]} 55. c7
{[%clk 0:00:21.1]} 55... Kf5 {[%clk 0:00:07.9]} 56. f3 {[%clk 0:00:21.9]} 56...
Kg5 {[%clk 0:00:07.3]} 57. g4 {[%clk 0:00:20.2]} 57... Kf4 {[%clk 0:00:03.9]}
58. Kf2 {[%clk 0:00:21.4]} 58... Rh8 {[%clk 0:00:03.1]} 59. Ra4+ {[%clk
0:00:21.2]} 59... Ke5 {[%clk 0:00:03.8]} 60. Rc4 {[%clk 0:00:22.3]} 60... Rc8
{[%clk 0:00:05.3]} 61. Kg3 {[%clk 0:00:23.1]} 61... Kd5 {[%clk 0:00:06.9]} 62.
Rc1 {[%clk 0:00:24.3]} 1-0